bitfinex/quotes_ETHUSD_20250319
["timestamp","ask_amount","ask_price","bid_price","bid_amount"]
[1742358513292,9.35920648,1937.6,1937.3,5.16174]
[1742358513623,4.50620648,1937.5,1937.3,5.16171]
[1742358513809,9.35920648,1937.6,1937.4,0.08580578]
[1742358514000,9.35920648,1937.6,1937.3,5.16171]
[1742358514201,9.35920648,1937.6,1937.4,0.08580578]
[1742358514403,4.50620648,1937.5,1937.3,5.16171]
[1742358514601,9.35920648,1937.6,1937.4,0.08580578]
[1742358514926,9.35920648,1937.6,1937.4,5.16155]
[1742358515224,9.35920648,1937.6,1937.5,0.08556543]
[1742358518233,9.35920648,1937.6,1937.5,5.24685543]
[1742358518528,4.50620648,1937.8,1937.5,5.24672543]
[1742358518692,4.57072173,1937.8,1937.6,5.1609]
[1742358519192,4.57072173,1937.8,1937.7,0.08514474]
[1742358519433,4.96433919,1937.8,1937.6,5.1609]
[1742358519730,4.96433919,1937.8,1937.7,0.08514474]
[1742358519931,0.45813271,1937.8,1937.7,0.08514474]
[1742358520102,4.57072173,1937.8,1937.6,5.16087]
[1742358520306,4.853,1937.8,1937.7,0.08514474]
[1742358520530,4.853,1937.8,1937.4,5.16149]
[1742358520531,9.42371784,1937.8,1937.4,5.16149]
[1742358520830,5.26380648,1937.7,1937.5,8.16128]
[1742358521992,5.32832188,1937.7,1937.5,8.16128]
[1742358525334,4.50620648,1937.7,1937.6,5.16102]
[1742358527107,4.50620648,1937.7,1937.5,8.16125]
[1742358527738,4.57072168,1937.7,1937.5,8.16125]
[1742358528422,4.57072168,1937.7,1937.5,5.16125]
[1742358529045,4.57072168,1937.7,1937.6,0.08535507]
[1742358529714,4.50620648,1937.7,1937.6,0.08535507]
[1742358530605,0.7576,1937.9,1937.6,0.08535507]
[1742358530806,5.6106,1937.9,1937.7,5.16059]
[1742358531008,6.62228065,1937.9,1937.8,0.0848702]
[1742358531332,11.12848713,1937.9,1937.8,0.0848702]
[1742358532211,11.5096227,1937.9,1937.8,0.0848702]
[1742358537044,11.5096227,1937.9,1937.6,5.16082]
[1742358537339,9.938207,1937.5,1937.3,13.32333]
[1742358537527,4.50620648,1937.5,1937.3,13.32333]
[1742358537731,4.50620648,1937.5,1937.4,5.16155]
[1742358537933,5.31870648,1937.6,1937.4,5.16155]
[1742358540261,4.50620648,1937.7,1937.5,5.16129]
[1742358541155,4.50620648,1937.6,1937.5,5.16129]
[1742358541357,4.50620648,1937.6,1937.4,5.16155]
[1742358541764,4.50620648,1937.5,1937.4,5.16155]
[1742358542064,4.50620648,1937.6,1937.4,5.16155]
[1742358543865,4.50620648,1937.6,1937.5,0.08286461]
[1742358544664,5.47936473,1937.6,1937.5,0.08286461]
[1742358544867,4.50620648,1937.6,1937.4,5.16155]
[1742358545194,4.50620648,1937.6,1937.5,0.08289458]
[1742358545765,4.50620648,1937.6,1937.3,5.16162]
[1742358545962,5.97299,1937.8,1937.5,0.08289458]
[1742358546165,4.50620648,1937.6,1937.4,5.24462496]
[1742358546336,4.50620648,1937.7,1937.6,0.08268422]
[1742358553071,9.66695648,1937.7,1937.6,0.08268422]
[1742358553271,7.86963726,1937.7,1937.3,5.44606]
[1742358553574,2.70888726,1937.4,1937.3,8.44606]
[1742358553749,2.70888726,1937.4,1937.3,8.16176]
[1742358555181,4.51474193,1937.5,1937.3,8.16176]
[1742358557853,4.51474193,1937.5,1937.3,5.16176]
[1742358558569,4.51474193,1937.5,1937.3,5.16182]
[1742358559087,4.51474193,1937.5,1937.4,0.08314349]
[1742358559487,4.51474193,1937.5,1937.3,5.16182]
[1742358559784,4.51474193,1937.5,1937.4,0.08314349]
[1742358559950,5.04655612,1937.5,1937.4,0.08314349]
[1742358560150,5.04655612,1937.5,1937.2,10.60826]
[1742358560350,5.04655612,1937.5,1937.4,0.08314349]
[1742358560588,5.04655612,1937.5,1937.2,10.60826]
[1742358560890,5.04655612,1937.5,1937.3,0.08338387]
[1742358561495,5.04655612,1937.5,1937.3,5.24518387]
[1742358561671,6.46960561,1937.4,1937.3,0.08338387]
[1742358561871,12.18141561,1937.4,1936.9,5.16266]
[1742358562078,11.53434754,1937.4,1937.3,0.07542733]
[1742358562265,11.53434754,1937.4,1937.0,3.0]
[1742358562585,4.51474193,1937.1,1937.0,8.16259]
[1742358563154,4.51474193,1937.2,1937.0,8.16238]
[1742358565208,0.7674,1937.1,1937.0,3.0]
[1742358565360,5.28214193,1937.1,1937.0,3.0]
[1742358565554,5.16265,1937.0,1936.6,0.2843]
[1742358565887,5.81035612,1937.1,1936.1,0.01]
[1742358565888,4.51474193,1936.7,1936.3,5.16443]
[1742358566049,5.93008,1937.0,1936.2,5.44903]
[1742358566254,4.51474193,1936.9,1936.6,5.16357]
[1742358566485,11.30998419,1937.1,1936.7,5.16328]
[1742358566687,4.51474193,1936.9,1936.7,5.16328]
[1742358567069,6.14761419,1937.1,1936.8,5.16315]
[1742358567265,4.51474193,1936.9,1936.8,5.16315]
[1742358567975,5.6194,1937.1,1936.9,5.16274]
[1742358568292,4.51474193,1937.0,1936.8,5.16314]
[1742358568457,4.51474193,1936.9,1936.8,5.16314]
[1742358568652,3.461399,1936.8,1936.6,3.0]
[1742358568857,4.51474193,1936.7,1936.6,3.0]
[1742358569058,4.51474193,1936.7,1936.5,5.16389]
[1742358569259,4.51474193,1936.6,1936.5,8.16389]
[1742358570394,4.51474193,1936.6,1936.3,5.44876]
[1742358570559,4.51474193,1936.4,1936.3,5.44864]
[1742358573923,4.51474193,1936.4,1936.3,5.24235914]
[1742358575021,4.51474193,1936.4,1936.3,0.07801914]
[1742358576325,4.51474193,1936.4,1936.1,8.17491]
[1742358576478,4.51474193,1936.2,1936.1,8.17491]
[1742358581711,0.7503,1935.7,1935.4,5.16671]
[1742358582012,4.51474193,1935.5,1935.4,5.16669]
[1742358582231,4.51474193,1935.5,1935.4,8.16669]
[1742358586690,0.7503,1936.1,1935.6,3.0]
[1742358586887,5.26504193,1936.1,1935.9,5.1654]
[1742358587082,6.03536658,1936.3,1936.0,5.16528]
[1742358587400,4.51474193,1936.1,1936.0,5.16528]
[1742358588102,4.51474193,1936.1,1935.9,5.1654]
[1742358588303,4.51474193,1936.0,1935.9,8.1654]
[1742358588705,4.51474193,1936.0,1935.9,8.23507106]
[1742358589429,5.26504193,1936.0,1935.9,3.06967106]
[1742358589641,5.79154612,1936.0,1935.9,0.06967106]
[1742358589797,5.8561176,1936.0,1935.9,0.06967106]
[1742358590116,5.8561176,1936.0,1935.8,3.0]
[1742358590325,1.34137567,1936.0,1935.9,0.06967106]
[1742358590511,1.27680419,1936.0,1935.8,8.16581]
[1742358590713,0.7503,1936.0,1935.8,8.16581]
[1742358590911,0.7503,1936.0,1935.9,0.06967106]
[1742358591121,5.26504193,1936.0,1935.8,8.16581]
[1742358591317,4.51474193,1935.9,1935.8,8.16581]
[1742358597838,0.7594,1935.9,1935.7,3.0]
[1742358598125,4.51474193,1935.8,1935.7,3.0]
[1742358598304,4.51474193,1935.8,1935.6,5.16635]
[1742358598305,5.1067341,1935.8,1935.6,5.16635]
[1742358598918,5.1067341,1935.8,1935.5,8.1665]
[1742358599122,4.51474193,1935.6,1935.5,8.1665]
[1742358601134,4.51474193,1935.7,1935.6,5.16626]
[1742358601438,4.51474193,1935.8,1935.6,5.16626]
[1742358601640,4.51474193,1935.7,1935.6,5.16626]
[1742358603617,4.51474193,1935.8,1935.7,5.16587]
[1742358603819,9.40074193,1935.9,1935.7,5.16587]
[1742358604227,9.40074193,1935.9,1935.8,5.16582]
[1742358606418,4.51474193,1935.9,1935.8,5.16582]
[1742358606625,4.51474193,1936.1,1935.9,5.16555]
[1742358606819,5.04215612,1936.1,1936.0,5.16528]
[1742358608245,0.7594,1936.4,1936.3,5.16448]
[1742358608443,5.27414193,1936.4,1936.2,5.16467]
[1742358608651,4.51474193,1936.3,1936.2,5.16467]
[1742358610542,4.51474193,1936.3,1936.1,5.16482]
[1742358610846,4.51474193,1936.2,1936.1,5.16482]
[1742358611571,4.51474193,1936.2,1936.0,5.16514]
[1742358611740,4.51474193,1936.1,1936.0,5.16514]
[1742358612355,4.51474193,1936.3,1936.1,10.32978]
[1742358612670,4.51474193,1936.3,1936.2,5.16475]
[1742358613575,4.51474193,1936.4,1936.3,5.16448]
[1742358613753,4.51474193,1936.5,1936.3,5.16448]
[1742358613961,4.51474193,1936.4,1936.3,5.16448]
[1742358614567,4.51474193,1936.4,1936.2,5.16474]
[1742358614769,4.51474193,1936.3,1936.2,5.16474]
[1742358616228,4.51474193,1936.3,1936.1,5.16501]
[1742358616434,4.51474193,1936.2,1936.1,5.16501]
[1742358617552,4.51474193,1936.4,1936.2,5.16475]
[1742358617731,4.51474193,1936.4,1936.2,5.16453]
[1742358618056,4.51474193,1936.5,1936.3,5.23355531]
[1742358618280,4.51474193,1936.8,1936.5,5.16381]
[1742358618569,4.51474193,1936.8,1936.6,5.16354]
[1742358618775,4.51474193,1936.7,1936.6,5.23198352]
[1742358620331,1.24687419,1936.9,1936.7,5.16341]
[1742358620667,4.51474193,1936.8,1936.7,5.16341]
[1742358621548,4.51474193,1936.8,1936.6,5.16364]
[1742358621928,4.51474193,1936.8,1936.7,5.16342]
[1742358624964,4.51474193,1936.9,1936.8,5.163]
[1742358628635,4.51474193,1936.9,1936.8,5.23087341]
[1742358629355,5.52005458,1936.9,1936.8,0.06787341]
[1742358629551,5.93866,1936.7,1936.2,10.32932]
[1742358629756,4.51474193,1936.4,1936.3,5.16448]
[1742358629954,4.51474193,1936.4,1936.3,8.16448]
[1742358630165,4.51474193,1936.4,1936.3,3.0]
[1742358630743,4.51474193,1936.4,1936.3,8.16448]
[1742358633174,4.51474193,1936.5,1936.4,5.16419]
[1742358633468,4.51474193,1936.5,1936.3,8.1643]
[1742358633669,4.51474193,1936.4,1936.3,8.1643]
[1742358635452,5.74131612,1936.4,1936.1,8.16495]
[1742358635660,4.51474193,1936.3,1936.2,8.16475]
[1742358636854,5.28984193,1936.4,1936.2,8.16475]
[1742358637062,5.28984193,1936.4,1936.2,13.32937]
[1742358637353,5.28984193,1936.4,1936.2,8.16462]
[1742358637554,4.51474193,1936.3,1936.2,3.0]
[1742358638149,4.51474193,1936.3,1936.2,8.16475]
[1742358641459,4.51474193,1936.3,1936.1,5.16482]
[1742358641669,4.51474193,1936.2,1936.0,5.16521]
[1742358641975,4.51474193,1936.1,1936.0,8.16521]
[1742358642193,4.51474193,1936.1,1936.0,3.0]
[1742358642398,4.51474193,1936.1,1936.0,8.16528]
[1742358642754,4.51474193,1936.2,1936.1,5.16483]
[1742358643882,4.51474193,1936.2,1936.1,5.23204991]
[1742358644266,4.51474193,1936.2,1936.1,0.06721991]
[1742358644869,4.96621612,1936.2,1936.1,0.06721991]
[1742358645080,5.73291612,1936.2,1935.9,8.16548]
[1742358645386,4.51474193,1936.0,1935.9,5.16548]
[1742358648017,4.51474193,1936.1,1936.0,5.16528]
[1742358650683,4.51474193,1936.3,1936.2,5.1646]
[1742358650871,4.51474193,1936.3,1936.2,10.32922]
[1742358651103,4.51474193,1936.4,1936.3,5.16448]
[1742358654718,4.51474193,1936.5,1936.4,5.16399]
[1742358657415,4.51474193,1936.6,1936.5,5.16381]
[1742358658702,4.51474193,1936.6,1936.5,5.23016184]
[1742358661130,4.51474193,1936.8,1936.7,5.16342]
[1742358661312,4.5792891,1936.8,1936.7,5.16342]
[1742358661631,4.51474193,1936.8,1936.7,5.22925708]
[1742358661836,4.51474193,1936.8,1936.7,5.16342]
[1742358662032,4.51474193,1936.8,1936.7,5.22925708]
[1742358663930,4.51474193,1936.8,1936.7,0.06583708]
[1742358664407,4.97267043,1936.8,1936.6,5.16352]
[1742358664607,1.2822285,1936.8,1936.7,0.06582857]
[1742358665129,6.4453785,1936.8,1936.7,0.06582857]
[1742358665305,6.4453785,1936.8,1936.4,5.16401]
[1742358665507,4.51474193,1936.5,1936.4,5.16401]
[1742358665705,5.16401,1936.4,1936.1,5.16491]
[1742358665949,4.51474193,1936.2,1936.1,3.0]
[1742358666099,5.33904193,1936.2,1936.0,5.16527]
[1742358666301,4.51474193,1936.1,1936.0,8.16527]
[1742358669734,5.04864612,1936.1,1935.8,5.16571]
[1742358669899,4.51474193,1935.9,1935.8,5.16571]
[1742358670099,4.51474193,1935.9,1935.8,8.16571]
[1742358673723,5.31064193,1935.9,1935.8,0.067801]
[1742358674104,5.31064193,1935.9,1935.7,5.16589]
[1742358674105,4.51474193,1935.9,1935.7,5.16589]
[1742358674305,0.7959,1936.1,1935.8,5.23368486]
[1742358674499,1.880967,1936.1,1935.8,5.23368486]
[1742358674738,1.880967,1936.1,1935.8,5.23348486]
[1742358675033,1.94553887,1936.1,1935.8,5.23348486]
[1742358675204,4.51474193,1935.9,1935.8,5.23348486]
[1742358677016,4.51474193,1935.9,1935.8,0.06786486]
[1742358678934,11.32726331,1935.9,1935.8,0.06786486]
[1742358679338,11.32726331,1935.9,1935.5,10.33288]
[1742358679512,4.51474193,1935.6,1935.5,8.16642]
[1742358679711,4.51474193,1935.7,1935.6,5.45065]
[1742358679914,0.39314014,1935.9,1935.7,5.16608]
[1742358679915,4.51474193,1935.9,1935.7,5.16608]
[1742358680226,4.51474193,1935.9,1935.8,5.16568]
[1742358680407,1.085067,1936.1,1935.9,5.1654]
[1742358680609,4.51474193,1936.0,1935.9,5.1654]
[1742358681027,4.51474193,1936.0,1935.8,5.16568]
[1742358681326,4.51474193,1935.9,1935.8,5.16568]
[1742358681906,4.51474193,1935.9,1935.7,5.16603]
[1742358682101,4.51474193,1935.8,1935.5,5.16661]
[1742358682336,4.51474193,1935.6,1935.5,8.16661]
[1742358682734,4.51474193,1935.6,1935.4,5.45117]
[1742358682939,4.51474193,1935.5,1935.3,23.1437887]
[1742358683127,4.51474193,1935.4,1935.3,5.2827887]
[1742358684143,4.51474193,1935.4,1935.3,0.1156687]
[1742358684355,5.78491612,1935.4,1935.3,0.1156687]
[1742358684556,4.51474193,1935.4,1935.3,0.1156687]
[1742358684723,4.51474193,1935.4,1935.3,5.2828187]
[1742358687156,4.51474193,1935.4,1935.3,5.5671187]
[1742358687558,4.51474193,1935.4,1935.3,5.2828187]
[1742358688218,5.33344193,1935.4,1935.3,0.1156687]
[1742358688850,5.86678612,1935.4,1935.3,0.18503882]
[1742358689442,4.51474193,1935.4,1935.3,5.35218882]
[1742358689747,4.51474193,1935.4,1935.3,0.18503882]
[1742358692079,5.33344193,1935.4,1935.3,0.18503882]
[1742358692577,4.51474193,1935.4,1935.3,0.18503882]
[1742358692764,5.33344193,1935.7,1935.4,5.16663]
[1742358693070,4.51474193,1935.5,1935.4,5.16663]
[1742358694640,4.51474193,1935.7,1935.6,5.16623]
[1742358696474,4.51474193,1935.7,1935.5,10.33302]
[1742358696675,4.51474193,1935.7,1935.6,5.16635]
[1742358696883,5.0120093,1935.7,1935.6,5.16635]
[1742358698474,5.0120093,1935.7,1935.5,5.16646]
[1742358703686,5.0120093,1935.7,1935.6,0.06889953]
[1742358705285,5.0120093,1935.7,1935.6,5.23524953]
[1742358705797,0.45793178,1935.8,1935.7,5.16608]
[1742358706096,0.45793178,1935.8,1935.6,5.23524953]
[1742358706311,0.45793178,1935.8,1935.7,0.06868876]
[1742358706466,0.45793178,1935.8,1935.6,5.16635]
[1742358706664,0.45793178,1935.8,1935.7,0.06868876]
[1742358706869,0.45793178,1935.8,1935.6,5.16635]
[1742358707184,0.45793178,1935.8,1935.7,0.06868876]
[1742358707496,0.45793178,1935.8,1935.6,5.16635]
[1742358707799,0.45793178,1935.8,1935.7,0.06868876]
[1742358708360,0.45793178,1935.8,1935.6,5.1662]
[1742358708558,4.51474193,1935.7,1935.6,5.1662]
[1742358710885,10.63030678,1935.9,1935.6,10.33237]
[1742358711183,12.20987146,1935.9,1935.7,5.16591]
[1742358711385,11.39117146,1935.9,1935.8,5.16582]
[1742358711560,11.39117146,1935.9,1935.7,5.16591]
[1742358712689,6.49117146,1935.9,1935.7,5.16591]
[1742358714870,0.8262,1936.1,1935.6,0.2843]
[1742358715107,4.51474193,1936.2,1936.0,5.16514]
[1742358715691,4.51474193,1936.3,1936.1,5.16502]
[1742358715872,4.90023036,1936.4,1936.2,5.16461]
[1742358716078,5.51062082,1936.4,1936.2,5.16461]
[1742358716588,4.96621612,1936.5,1936.4,5.16422]
[1742358716989,4.96621612,1936.5,1936.3,5.16435]
[1742358717281,4.96621612,1936.5,1936.4,0.06701377]
[1742358717497,4.96621612,1936.5,1936.3,5.16435]
[1742358717685,4.51474193,1936.4,1936.2,5.16464]
[1742358717887,4.51474193,1936.3,1936.2,5.16464]
[1742358718092,4.51474193,1936.3,1936.0,5.44957]
[1742358718093,4.51474193,1936.3,1936.1,10.32979]
[1742358718295,4.51474193,1936.2,1936.1,10.32979]
[1742358718706,4.51474193,1936.2,1936.1,10.3974357]
[1742358721425,5.71841612,1936.2,1936.1,0.0676457]
[1742358721581,10.88316612,1936.2,1936.1,0.0676457]
[1742358721781,10.88316612,1936.2,1935.8,5.16577]
[1742358721987,4.51474193,1935.9,1935.8,5.16577]
[1742358723285,5.71841612,1935.9,1935.7,5.16595]
[1742358723484,4.51474193,1935.8,1935.7,10.33182]
[1742358723687,4.51474193,1936.0,1935.9,5.16552]
[1742358726306,4.51474193,1936.0,1935.9,5.44982]
[1742358727416,4.51474193,1936.2,1936.1,5.16502]
[1742358733811,4.51474193,1936.2,1936.1,5.23252517]
[1742358734940,5.04494612,1936.2,1936.1,0.06750517]
[1742358735237,5.04494612,1936.2,1935.9,10.33091]
[1742358735431,0.59477012,1936.2,1936.1,0.06740724]
[1742358735630,0.59477012,1936.2,1936.0,0.06761792]
[1742358735841,0.59477012,1936.2,1936.1,0.06737743]
[1742358736144,0.59477012,1936.2,1935.9,5.16539]
[1742358736445,0.59477012,1936.2,1936.0,0.06758812]
[1742358737440,0.53020419,1936.2,1936.0,0.06758812]
[1742358737742,4.51474193,1936.1,1936.0,5.23279812]
[1742358739716,4.51474193,1936.1,1936.0,5.51709812]
[1742358740365,6.08791724,1936.5,1936.3,5.16446]
[1742358740509,4.51474193,1936.4,1936.3,5.16446]
[1742358745020,4.51474193,1936.5,1936.4,5.16422]
[1742358745236,4.95654904,1936.9,1936.7,5.16317]
[1742358745430,4.51474193,1936.8,1936.7,5.16317]
[1742358748760,4.51474193,1936.8,1936.7,5.22917308]
[1742358754063,4.51474193,1936.8,1936.7,0.06600308]
[1742358754365,10.28545805,1936.8,1936.5,5.16388]
[1742358754558,4.51474193,1936.6,1936.5,5.16388]
[1742358757279,4.51474193,1936.6,1936.4,5.16401]
[1742358757560,4.51474193,1936.5,1936.4,5.16401]
[1742358763004,1.17835348,1937.0,1936.3,0.2843]
[1742358763177,5.69309541,1937.0,1936.8,5.16313]
[1742358763366,4.51474193,1936.9,1936.8,5.16313]
[1742358763680,4.51474193,1936.9,1936.6,5.1635]
[1742358763681,5.16313,1936.8,1936.6,5.1635]
[1742358763878,4.51474193,1936.7,1936.6,5.1635]
[1742358765355,5.29944193,1936.7,1936.4,5.16422]
[1742358765557,4.51474193,1936.5,1936.3,8.16441]
[1742358765749,5.29944193,1936.4,1936.3,5.16441]
[1742358766165,5.29944193,1936.4,1936.1,5.16501]
[1742358766370,0.7847,1936.1,1935.8,5.16564]
[1742358766557,4.51474193,1935.9,1935.8,5.16564]
[1742358767557,4.51474193,1935.9,1935.6,5.16633]
[1742358767876,0.7847,1935.9,1935.7,5.16595]
[1742358768072,4.51474193,1935.8,1935.7,5.16595]
[1742358769375,4.51474193,1935.8,1935.6,5.16617]
[1742358769556,4.51474193,1935.7,1935.6,5.16617]
[1742358772975,4.51474193,1935.7,1935.4,3.0]
[1742358772976,4.96621612,1935.7,1935.4,5.16686]
[1742358773176,4.51474193,1935.5,1935.4,5.16686]
[1742358776456,4.51474193,1935.5,1935.4,5.45116]
[1742358776685,4.51474193,1935.6,1935.5,5.16662]
[1742358778489,5.28789893,1936.0,1935.8,5.1658]
[1742358778687,0.52878989,1935.9,1935.8,5.1658]
[1742358778885,6.76792919,1936.1,1935.8,5.1658]
[1742358779058,6.76792919,1936.1,1935.9,5.16554]
[1742358779254,6.76792919,1936.1,1935.8,5.1658]
[1742358779460,4.51474193,1935.9,1935.8,5.1658]
[1742358784261,0.8305,1936.1,1935.9,5.16555]
[1742358784475,4.51474193,1936.2,1936.1,5.16491]
[1742358784663,4.96621612,1936.2,1936.0,5.16504]
[1742358784867,4.51474193,1936.1,1936.0,5.16504]
[1742358787199,5.34524193,1936.1,1935.8,5.16572]
[1742358787403,4.51474193,1935.9,1935.8,5.16572]
[1742358787799,4.51474193,1935.9,1935.7,5.16608]
[1742358788004,0.8305,1935.8,1935.6,5.16635]
[1742358788488,4.51474193,1935.7,1935.6,13.33251]
[1742358788671,4.51474193,1935.7,1935.6,5.16616]
[1742358791406,4.51474193,1935.7,1935.6,5.45046]
[1742358791607,4.51474193,1935.7,1935.6,5.16616]
[1742358792808,5.26954193,1935.7,1935.5,10.33308]
[1742358793034,4.51474193,1935.6,1935.5,13.33308]
[1742358793795,4.51474193,1935.6,1935.5,13.4018411]
[1742358794590,4.51474193,1935.6,1935.5,8.2352411]
[1742358796307,4.51474193,1935.6,1935.5,5.2352411]
[1742358798325,4.51474193,1935.6,1935.5,0.0687611]
[1742358798626,9.99027989,1935.6,1935.3,5.2827287]
[1742358798814,5.26954193,1935.4,1935.3,5.2827287]
[1742358799131,5.26954193,1935.4,1935.3,5.2828187]
[1742358801031,4.51474193,1935.4,1935.3,5.2828187]
[1742358801730,4.881,1935.7,1935.5,5.16662]
[1742358801931,4.51474193,1935.6,1935.5,5.16662]
[1742358806434,4.51474193,1935.7,1935.6,5.1661]
[1742358807023,0.7891,1935.9,1935.8,5.16582]
[1742358807229,4.51474193,1935.9,1935.8,5.16582]
[1742358808108,5.6741,1936.1,1935.9,5.16547]
[1742358808307,4.51474193,1936.0,1935.9,5.16547]
[1742358808729,4.51474193,1936.0,1935.9,5.23362652]
[1742358815442,4.51474193,1936.0,1935.9,6.55787117]
[1742358815653,4.51474193,1936.3,1936.2,5.16475]
[1742358815821,4.51474193,1936.3,1936.1,5.16501]
[1742358816143,4.51474193,1936.2,1936.1,5.16501]
[1742358816356,4.51474193,1936.2,1936.0,5.16528]
[1742358816569,4.51474193,1936.1,1936.0,5.16528]
[1742358817451,4.51474193,1936.2,1936.1,5.16484]
[1742358818010,4.96621612,1936.2,1936.0,5.16525]
[1742358818216,4.51474193,1936.1,1936.0,5.16525]
[1742358823936,4.51474193,1936.1,1936.0,5.23226698]
[1742358825851,4.51474193,1936.3,1936.2,5.16466]
[1742358826222,5.30774193,1936.3,1936.2,5.16466]
[1742358826421,5.30774193,1936.3,1936.2,5.23125563]
[1742358826734,5.30774193,1936.3,1936.2,0.06659563]
[1742358826934,5.84497207,1936.3,1936.2,0.06659563]
[1742358827524,5.05197207,1936.3,1936.2,0.06659563]
[1742358827724,4.51474193,1936.3,1936.2,5.23134563]
[1742358828555,6.54296472,1936.7,1936.2,0.35089563]
[1742358828759,4.51474193,1936.5,1936.4,5.16397]
[1742358829055,4.55104665,1936.7,1936.6,5.16368]
[1742358829644,4.55104665,1936.7,1936.6,5.2293949]
[1742358829850,0.03630472,1936.7,1936.6,5.2293949]
[1742358831460,4.55104665,1936.7,1936.6,5.2293949]
[1742358834565,0.03630472,1936.7,1936.6,5.2293949]
[1742358834770,0.03630472,1936.7,1936.6,6.05198266]
[1742358835435,0.03630472,1936.7,1936.6,9.05198266]
[1742358838449,0.03630472,1936.7,1936.6,9.33628266]
[1742358841079,4.55104665,1936.7,1936.6,9.05198266]
[1742358842242,4.55104665,1936.7,1936.6,8.2293949]
[1742358842437,5.38144665,1936.7,1936.6,0.0657149]
[1742358842849,5.38144665,1936.7,1936.5,5.16392]
[1742358843060,0.86670472,1936.7,1936.6,0.06508128]
[1742358843260,5.38144665,1936.7,1936.6,5.22876128]
[1742358844945,5.34514193,1936.7,1936.6,5.22876128]
[1742358845547,5.34514193,1936.7,1936.6,0.06508128]
[1742358846645,5.87965612,1936.7,1936.6,0.06508128]
[1742358846954,5.87965612,1936.7,1936.4,5.16419]
[1742358847151,4.51474193,1936.5,1936.4,10.32822]
[1742358847554,4.51474193,1936.5,1936.4,5.16403]
[1742358851712,0.7515,1936.4,1936.3,5.16448]
[1742358851913,5.26624193,1936.4,1936.3,5.16448]
[1742358852109,5.26624193,1936.4,1936.1,5.16484]
[1742358852364,4.51474193,1936.2,1936.1,5.16484]
[1742358853261,4.51474193,1936.2,1936.1,10.32975]
[1742358853736,4.51474193,1936.2,1936.1,10.39615224]
[1742358853936,0.7515,1936.6,1936.3,5.16448]
[1742358854141,4.51474193,1936.4,1936.3,10.32879]
[1742358854455,4.51474193,1936.4,1936.3,5.16431]
[1742358856719,4.51474193,1936.4,1936.2,5.16467]
[1742358857360,4.51474193,1936.3,1936.2,5.16467]
[1742358858058,5.26624193,1936.3,1936.2,5.16467]
[1742358858559,5.26624193,1936.3,1936.1,10.32989]
[1742358858949,4.51474193,1936.3,1936.2,5.16475]
[1742358861117,4.51474193,1936.3,1936.2,6.197713]
[1742358861547,0.7515,1936.8,1936.4,5.16422]
[1742358861857,4.51474193,1936.6,1936.4,10.3281]
[1742358862067,4.51474193,1936.5,1936.4,5.16403]
[1742358865947,15.49295,1936.3,1935.9,5.16535]
[1742358866114,4.51474193,1936.1,1935.9,5.16535]
[1742358866549,4.51474193,1936.1,1935.9,10.33079]
[1742358867448,4.51474193,1936.1,1936.0,5.16528]
[1742358868767,4.51474193,1936.1,1936.0,6.26073686]
[1742358868979,4.51474193,1936.3,1936.1,5.16485]
[1742358869269,4.51474193,1936.3,1936.2,0.06197252]
[1742358869423,4.51474193,1936.3,1936.2,5.22672252]
[1742358872170,4.51474193,1936.5,1936.4,5.16422]
[1742358872321,4.51474193,1936.5,1936.4,5.22577125]
[1742358872759,4.51474193,1936.5,1936.4,0.06155125]
[1742358873049,4.51474193,1936.5,1936.3,5.16427]
[1742358873355,4.51474193,1936.5,1936.4,0.06155125]
[1742358873551,4.51474193,1936.5,1936.3,5.16427]
[1742358873854,5.31514193,1936.5,1936.4,0.06155125]
[1742358874054,10.47909193,1936.5,1936.4,0.06155125]
[1742358874275,10.47909193,1936.5,1936.1,5.16497]
[1742358874460,5.96435,1936.5,1936.4,0.06155125]
[1742358874637,0.8004,1936.3,1936.0,3.0]
[1742358874964,4.51474193,1936.2,1936.0,3.0]
[1742358875122,4.51474193,1936.2,1936.0,8.16527]
[1742358875789,4.51474193,1936.2,1935.9,5.16555]
[1742358875994,4.51474193,1936.2,1936.0,5.16523]
[1742358876704,4.51474193,1936.2,1936.0,10.33033]
[1742358876875,4.51474193,1936.2,1936.0,5.1651]
[1742358877809,4.51474193,1936.2,1936.1,5.16502]
[1742358878393,4.51474193,1936.2,1936.0,5.1651]
[1742358880190,4.51474193,1936.2,1935.9,5.16549]
[1742358880376,4.51474193,1936.0,1935.9,5.16549]
[1742358881122,5.31594193,1936.0,1935.8,5.16557]
[1742358883836,5.31594193,1936.0,1935.9,0.06278691]
[1742358884195,5.31594193,1936.0,1935.8,5.16557]
[1742358884396,4.51474193,1935.9,1935.8,5.16557]
[1742358886037,4.51474193,1935.9,1935.7,5.16608]
[1742358886247,4.51474193,1935.8,1935.7,5.16608]
[1742358888724,4.51474193,1935.8,1935.6,5.16622]
[1742358888725,4.51474193,1935.8,1935.6,5.16629]
[1742358889027,5.31594193,1935.7,1935.6,5.16629]
[1742358890297,11.13391,1935.6,1935.3,0.1156687]
[1742358890528,4.51474193,1935.4,1935.3,0.1156687]
[1742358895648,4.51474193,1935.4,1935.3,5.2828187]
[1742358895847,4.51474193,1935.4,1935.3,0.1156687]
[1742358897586,4.51474193,1935.4,1935.3,5.2828187]
[1742358898849,4.51474193,1935.4,1935.3,5.34703578]
[1742358900285,4.51474193,1935.4,1935.3,6.68276136]
[1742358900457,1.27796497,1935.8,1935.5,5.16652]
[1742358900782,1.27796497,1935.8,1935.6,0.06388164]
[1742358901577,4.51474193,1935.7,1935.4,5.16678]
[1742358901787,4.51474193,1935.5,1935.4,5.16678]
[1742358901986,4.51474193,1935.5,1935.3,5.2828187]
[1742358902188,4.51474193,1935.4,1935.3,5.2828187]
[1742358903549,4.51474193,1935.4,1935.3,0.1156687]
[1742358903966,4.51474193,1935.4,1935.3,5.2828187]
[1742358904485,4.57933318,1935.4,1935.3,0.1156687]
[1742358905486,4.51474193,1935.4,1935.3,0.1156687]
[1742358905696,4.872,1935.6,1935.4,5.16678]
[1742358905919,4.51474193,1935.5,1935.3,5.2826787]
[1742358906190,4.93658645,1935.6,1935.3,5.2826787]
[1742358906191,4.872,1935.6,1935.4,5.16689]
[1742358906387,4.93658645,1935.6,1935.4,5.16689]
[1742358906795,4.872,1935.6,1935.4,5.16689]
[1742358907914,4.872,1935.6,1935.4,5.16669]
[1742358909496,4.51474193,1935.5,1935.4,5.16669]
[1742358909993,4.51474193,1935.5,1935.4,6.21164087]